bitfinex-derivatives/quotes_ETHF0:USTF0_20250602
["timestamp","ask_amount","ask_price","bid_price","bid_amount"]
[1748829504698,3.2078,2528.5,2528.4,0.79065]
[1748829504997,6.47434494,2528.5,2528.4,4.73265]
[1748829505399,6.47434494,2528.5,2528.4,3.942]
[1748829506202,1.15529494,2528.5,2528.4,4.73265]
[1748829506705,0.79062,2528.5,2528.4,5.42665]
[1748829507204,0.79654613,2528.6,2528.4,4.636]
[1748829507404,0.00593613,2528.6,2528.4,5.42663]
[1748829507802,0.00593613,2528.6,2528.4,5.92663]
[1748829508204,0.79654613,2528.6,2528.5,0.79062]
[1748829508502,1.95159977,2528.6,2528.4,5.136]
[1748829508807,0.79062,2528.5,2528.4,5.92663]
[1748829509104,0.79654613,2528.6,2528.4,5.92663]
[1748829509400,0.00593613,2528.6,2528.5,0.79062]
[1748829509805,0.00593613,2528.6,2528.5,2.05372]
[1748829510502,0.00593613,2528.6,2528.5,3.942]
[1748829512003,0.79653613,2528.6,2528.5,4.73262]
[1748829512704,0.00593613,2528.6,2528.5,4.73262]
[1748829513007,0.00593613,2528.6,2528.5,6.02792]
[1748829519412,0.00593613,2528.6,2528.5,0.79062]
[1748829519617,0.00593613,2528.6,2528.5,5.23162]
[1748829521210,0.79652613,2528.6,2528.5,1.29062]
[1748829521410,2.14932613,2528.6,2528.5,4.441]
[1748829521914,2.14932613,2528.6,2528.5,5.23162]
[1748829522411,1.35873613,2528.6,2528.5,5.23162]
[1748829523715,2.14932613,2528.6,2528.5,5.23162]
[1748829524111,1.35873613,2528.6,2528.5,5.23162]
[1748829527313,2.14932613,2528.6,2528.5,5.23162]
[1748829527714,3.30416374,2528.6,2528.5,5.23162]
[1748829530516,2.51357374,2528.6,2528.5,5.23162]
[1748829531118,1.35873613,2528.6,2528.5,5.23162]
[1748829531809,2.51442982,2528.6,2528.5,5.23162]
[1748829533618,2.51506267,2528.6,2528.5,5.23162]
[1748829537418,3.30565267,2528.6,2528.5,4.73162]
[1748829537824,2.14932613,2528.6,2528.5,5.23162]
[1748829538124,3.30664152,2528.6,2528.5,5.23162]
[1748829538317,3.30663086,2528.6,2528.5,5.23162]
[1748829538518,2.51604086,2528.6,2528.5,5.23162]
[1748829539720,11.51443086,2528.6,2528.5,0.5]
[1748829539915,12.19123086,2528.6,2528.5,0.5]
[1748829540618,14.53682081,2528.6,2528.5,0.5]
[1748829541119,0.79068,2528.3,2528.2,3.9]
[1748829541313,0.79074,2528.1,2528.0,3.2078]
[1748829541520,1.94789355,2528.1,2528.0,7.1078]
[1748829541913,3.22909355,2528.1,2528.0,7.1078]
[1748829542125,3.22909355,2528.1,2528.0,3.2078]
[1748829542321,2.43835355,2528.1,2527.7,43.87766]
[1748829542619,0.79087,2527.7,2527.6,3.9]
[1748829542921,1.94802355,2527.7,2527.6,3.9]
[1748829543124,0.79087,2527.7,2527.6,4.4]
[1748829543327,1.94802355,2527.7,2527.6,4.4]
[1748829543629,3.21812355,2527.7,2527.6,4.4]
[1748829543929,21.38612355,2527.7,2527.6,4.4]
[1748829544125,26.38612355,2527.7,2527.6,0.5]
[1748829544428,21.38612355,2527.7,2527.6,0.5]
[1748829545017,21.38205667,2527.7,2527.6,0.5]
[1748829547225,20.22897,2527.7,2527.6,0.5]
[1748829547825,21.57343782,2527.7,2527.6,0.5]
[1748829548732,21.37992315,2527.7,2527.6,0.5]
[1748829550227,20.22897,2527.7,2527.6,0.5]
[1748829553833,20.23297,2527.7,2527.6,0.5]
[1748829554237,2.06097,2527.7,2527.6,0.5]
[1748829554634,0.7909,2527.6,2527.5,1.45133]
[1748829554836,1.2701,2527.7,2527.5,0.6604]
[1748829555136,0.7909,2527.6,2527.5,0.6604]
[1748829556747,0.7909,2527.6,2527.5,1.1604]
[1748829558045,0.7909,2527.6,2527.5,0.5]
[1748829559549,1.4392,2527.6,2527.5,0.5]
[1748829562252,2.58874489,2527.6,2527.5,0.5]
[1748829562753,2.58869641,2527.6,2527.5,0.5]
[1748829564952,1.94039641,2527.6,2527.5,0.5]
[1748829565153,18.9639,2527.6,2527.5,0.5]
[1748829565847,20.11441103,2527.6,2527.5,0.5]
[1748829567047,20.11494304,2527.6,2527.5,0.5]
[1748829567446,0.79093,2527.5,2527.4,1.9661]
[1748829567647,1.94263279,2527.5,2527.4,1.9661]
[1748829567854,1.94263279,2527.5,2527.4,2.4661]
[1748829569156,3.30033279,2527.5,2527.4,1.1275]
[1748829571460,3.30242485,2527.5,2527.4,1.1275]
[1748829575867,3.30439804,2527.5,2527.4,1.1275]
[1748829576057,6.51219804,2527.5,2527.4,1.1275]
[1748829578760,23.32749804,2527.5,2527.4,1.1275]
[1748829579056,5.15449804,2527.5,2527.4,3.19336]
[1748829579465,5.15449804,2527.5,2527.4,2.4024]
[1748829580269,0.79093,2527.5,2527.4,2.4024]
[1748829580567,1.94700423,2527.5,2527.4,2.4024]
[1748829580763,1.9470018,2527.5,2527.4,2.4024]
[1748829581367,1.9470018,2527.5,2527.4,0.5]
[1748829581668,3.9968018,2527.5,2527.4,0.5]
[1748829582570,0.79096,2527.4,2527.3,0.00593613]
[1748829582765,3.3308318,2527.4,2527.3,0.00593613]
[1748829584871,3.3310489,2527.4,2527.3,0.00593613]
[1748829586271,3.52419209,2527.4,2527.3,0.00593613]
[1748829586572,3.3310489,2527.4,2527.3,0.00593613]
[1748829587369,3.52421554,2527.4,2527.3,0.00593613]
[1748829587574,3.3310489,2527.4,2527.3,0.00593613]
[1748829589367,3.52425653,2527.4,2527.3,0.00593613]
[1748829589569,3.33098768,2527.4,2527.3,0.00593613]
[1748829590773,3.52419235,2527.4,2527.3,0.00593613]
[1748829590974,3.33098768,2527.4,2527.3,0.00593613]
[1748829593882,3.33077769,2527.4,2527.3,0.00593613]
[1748829594783,3.52399629,2527.4,2527.3,0.00593613]
[1748829594984,3.52395488,2527.4,2527.3,0.00593613]
[1748829595285,3.52396015,2527.4,2527.3,0.00593613]
[1748829595585,3.52396194,2527.4,2527.3,0.00593613]
[1748829595784,3.52396169,2527.4,2527.3,0.00593613]
[1748829595978,3.33077769,2527.4,2527.3,0.00593613]
[1748829596179,3.52394383,2527.4,2527.3,0.00593613]
[1748829596378,3.5239425,2527.4,2527.3,0.00593613]
[1748829596879,3.52395823,2527.4,2527.3,0.00593613]
[1748829597081,3.52396048,2527.4,2527.3,0.00593613]
[1748829597282,3.33077769,2527.4,2527.3,0.00593613]
[1748829597481,3.52396246,2527.4,2527.3,0.00593613]
[1748829597983,3.52396093,2527.4,2527.3,0.00593613]
[1748829598185,2.36794324,2527.4,2527.3,0.00593613]
[1748829598385,3.52421033,2527.4,2527.3,0.00593613]
[1748829598579,3.33102709,2527.4,2527.3,0.00593613]
[1748829598978,21.50202709,2527.4,2527.3,0.00593613]
[1748829600877,3.5244499,2527.4,2527.3,0.00593613]
[1748829601082,21.50202709,2527.4,2527.3,0.00593613]
[1748829601380,21.50315693,2527.4,2527.3,0.00593613]
[1748829601579,20.34576,2527.4,2527.3,0.00593613]
[1748829601781,21.50306201,2527.4,2527.3,0.00593613]
[1748829603482,21.50206201,2527.4,2527.3,0.00593613]
[1748829603687,3.52556634,2527.4,2527.3,0.00593613]
[1748829603984,1.35080451,2527.4,2527.3,0.79692613]
[1748829604187,1.35080451,2527.4,2527.3,0.00593613]
[1748829604393,2.14176451,2527.4,2527.3,0.50593613]
[1748829604989,2.14176451,2527.4,2527.3,1.77423613]
[1748829605191,2.14176451,2527.4,2527.3,0.50593613]
[1748829605396,3.29916502,2527.4,2527.3,0.50593613]
[1748829605588,3.60287507,2527.4,2527.3,0.50593613]
[1748829605784,21.57936301,2527.4,2527.3,0.50593613]
[1748829606589,21.77287393,2527.4,2527.3,0.50593613]
[1748829606789,20.50537393,2527.4,2527.3,0.50593613]
[1748829608089,20.69890002,2527.4,2527.3,0.50593613]
[1748829609587,19.54149951,2527.4,2527.3,0.50593613]
[1748829609791,20.89316314,2527.4,2527.3,0.50593613]
[1748829610087,20.69957704,2527.4,2527.3,0.50593613]
[1748829610289,20.89319247,2527.4,2527.3,0.50593613]
[1748829610486,20.8932592,2527.4,2527.3,0.50593613]
[1748829610681,2.52957704,2527.4,2527.3,0.50593613]
[1748829610887,20.69857704,2527.4,2527.3,0.50593613]
[1748829611287,20.69857704,2527.4,2527.3,1.81393613]
[1748829612388,19.54049951,2527.4,2527.3,1.81393613]
[1748829612589,20.69931329,2527.4,2527.3,1.81393613]
[1748829613185,20.69931329,2527.4,2527.3,2.60492613]
[1748829613387,20.69931329,2527.4,2527.3,1.81393613]
[1748829614192,20.69925501,2527.4,2527.3,1.81393613]
[1748829615394,20.69925501,2527.4,2527.3,1.31393613]
[1748829615595,20.69925501,2527.4,2527.3,1.81393613]
[1748829615993,1.73929501,2527.4,2527.3,7.60492613]
[1748829616289,1.73929501,2527.4,2527.3,10.81272613]
[1748829616595,2.34878825,2528.2,2528.1,0.79074]
[1748829616888,2.34878825,2528.3,2528.2,0.79071]
[1748829617097,3.50753531,2528.3,2528.2,2.6954]
[1748829617292,4.29821531,2528.3,2528.2,2.6954]
[1748829617494,3.13946825,2528.3,2528.2,3.48611]
[1748829617693,0.79068,2528.3,2528.2,3.48611]
[1748829617991,0.79068,2528.3,2528.2,2.6954]
[1748829618190,0.79068,2528.3,2528.2,0.674]
[1748829618691,3.2078,2528.3,2527.7,3.2078]
[1748829618898,0.79082,2527.9,2527.8,3.899]
[1748829619094,0.79084,2527.8,2527.7,7.1068]
[1748829619303,0.79092,2527.6,2527.4,46.10004]
[1748829619496,0.79092,2527.6,2527.5,3.899]
[1748829619701,0.79092,2527.6,2527.5,4.68993]
[1748829619997,0.79089,2527.7,2527.5,4.5328]
[1748829620193,2.15985,2527.8,2527.6,0.79089]
[1748829621601,2.15984,2527.8,2527.6,0.79089]
[1748829621801,2.15984,2527.8,2527.5,6.62501]
[1748829622097,19.535,2527.8,2527.7,0.79087]
[1748829623993,20.32585,2527.8,2527.6,0.79088]
[1748829624898,0.79087,2527.7,2527.6,0.79088]
[1748829627501,20.32586,2527.8,2527.7,0.79087]
[1748829627701,0.79087,2527.7,2527.6,0.79087]
[1748829628001,20.32586,2527.8,2527.6,0.79087]
[1748829628901,0.79087,2527.7,2527.6,0.79087]
[1748829629502,20.32586,2527.8,2527.7,0.79087]
[1748829629897,20.32586,2527.8,2527.7,1.29087]
[1748829630102,2.15986,2527.8,2527.7,1.29087]
[1748829630304,20.32286,2527.8,2527.7,1.29087]
[1748829633103,0.6738,2528.2,2527.7,0.5]
[1748829633308,2.78783,2528.2,2528.1,0.79074]
[1748829633604,22.10337731,2528.2,2528.1,0.79074]
[1748829634608,21.31264731,2528.2,2528.1,0.79074]
[1748829634803,22.10335731,2528.2,2528.1,0.79074]
[1748829635201,1.9971,2528.2,2528.1,0.79074]
[1748829635411,19.4853,2528.2,2528.1,0.79074]
[1748829635603,19.4853,2528.2,2527.9,3.896]
[1748829635808,0.79077,2528.0,2527.9,4.68679]
[1748829636813,0.79077,2528.0,2527.9,4.6868]
[1748829637012,2.17497,2528.1,2527.9,4.6868]
[1748829637406,1.3851,2528.0,2527.9,4.6868]
[1748829637607,2.17587,2528.0,2527.9,3.896]
[1748829637815,0.7908,2527.9,2527.8,1.44342]
[1748829638015,0.79084,2527.8,2527.7,4.396]
[1748829638510,2.17594,2527.8,2527.7,4.396]
[1748829638706,1.3851,2527.8,2527.7,5.18687]
[1748829641913,2.17594,2527.8,2527.7,5.18687]
[1748829642310,1.3851,2527.8,2527.7,5.18687]
[1748829642510,2.17594,2527.8,2527.7,3.896]
[1748829642919,2.17594,2527.8,2527.7,4.396]
[1748829644215,2.17594,2527.8,2527.7,5.18687]
[1748829644913,2.17594,2527.8,2527.7,4.396]
[1748829645716,3.33065647,2527.8,2527.7,4.396]
[1748829646310,3.33065647,2527.8,2527.7,5.18687]
[1748829646510,3.33065647,2527.8,2527.7,4.396]
[1748829647415,2.53981647,2527.8,2527.7,5.18687]
[1748829648016,3.33065647,2527.8,2527.7,5.18687]
[1748829648216,2.53981647,2527.8,2527.7,5.18687]
[1748829648419,3.33065647,2527.8,2527.7,5.18687]
[1748829649622,3.33065647,2527.8,2527.7,4.396]
[1748829649821,3.33065647,2527.8,2527.7,0.5]
[1748829650014,7.17475647,2527.8,2527.7,0.5]
[1748829651715,12.17475647,2527.8,2527.7,0.5]
[1748829653319,12.17500186,2527.8,2527.7,0.5]
[1748829653615,3.96720186,2527.8,2527.7,0.5]
[1748829653819,7.17500186,2527.8,2527.7,0.5]
[1748829654316,25.33400186,2527.8,2527.7,0.5]
[1748829654517,25.3338105,2527.8,2527.7,0.5]
[1748829655011,22.1260105,2527.8,2527.7,0.5]
[1748829655213,25.3338105,2527.8,2527.7,0.5]
[1748829656520,22.1260105,2527.8,2527.7,0.5]
[1748829656918,25.3338105,2527.8,2527.7,0.5]
[1748829657622,0.79087,2527.7,2527.6,0.4498]
[1748829657823,3.2615405,2527.7,2527.6,0.4498]
[1748829658828,2.10677,2527.7,2527.6,0.4498]
[1748829659029,3.26091997,2527.7,2527.6,0.4498]
[1748829660725,3.26091997,2527.7,2527.3,0.00593613]
[1748829660726,0.79096,2527.4,2527.3,0.00593613]
[1748829660926,5.15290997,2527.4,2527.3,0.00593613]
[1748829661627,3.99876,2527.4,2527.3,0.00593613]
[1748829661828,5.15252106,2527.4,2527.3,0.00593613]
[1748829665530,23.31152106,2527.4,2527.3,0.00593613]
[1748829665841,23.31252106,2527.4,2527.3,0.00593613]
[1748829666043,23.31252891,2527.4,2527.3,0.00593613]
[1748829668742,5.15252891,2527.4,2527.3,0.00593613]
[1748829668943,23.31252891,2527.4,2527.3,0.00593613]
[1748829672650,4.36048351,2527.4,2527.3,0.00593613]
[1748829672845,18.94996,2527.5,2527.3,0.79692613]
[1748829673046,18.94996,2527.5,2527.3,2.13222613]
[1748829673345,18.94996,2527.5,2527.4,0.6309]
[1748829673551,20.10301606,2527.5,2527.4,1.9662]
[1748829673750,1.15305606,2527.5,2527.4,2.75716]
[1748829673949,18.159,2527.9,2527.4,5.96496]
[1748829674245,1.15330095,2527.8,2527.7,0.79087]
[1748829674451,0.79077,2528.0,2527.8,0.79083]
[1748829674653,0.79076,2528.1,2527.9,1.2624]
[1748829674851,0.79076,2528.1,2528.0,1.379]
[1748829675243,1.15373457,2528.1,2528.0,2.16977]
[1748829675443,0.79071,2528.2,2528.0,4.5868]
[1748829675749,0.79071,2528.2,2528.0,5.37756]
[1748829675954,0.7907,2528.3,2528.2,0.79071]
[1748829676154,3.2078,2528.4,2528.1,3.894]
[1748829676354,3.2078,2528.4,2528.3,0.79068]
[1748829676550,3.99845,2528.4,2528.3,0.79068]
[1748829676852,3.99845,2528.4,2528.3,1.41898]
[1748829677052,3.99845,2528.4,2528.3,0.6283]
[1748829677549,3.99845,2528.4,2528.3,1.9513]
[1748829678355,3.2078,2528.4,2528.3,2.74198]
[1748829679058,3.99845,2528.4,2528.3,2.74198]
[1748829679258,3.2078,2528.4,2528.3,2.74198]
[1748829679456,3.99845,2528.4,2528.3,2.74198]
[1748829679755,3.99845,2528.4,2528.3,1.9513]
[1748829681553,0.79077,2528.0,2527.9,0.6315]
[1748829682255,0.79077,2528.0,2527.9,1.4223]
[1748829682452,0.79077,2528.0,2527.9,1.9253]
[1748829683959,0.79077,2528.0,2527.9,2.7161]
[1748829684759,2.6872,2528.3,2527.9,1.9253]
[1748829685059,0.79077,2528.0,2527.9,0.6315]
[1748829685449,0.7908,2527.9,2527.8,0.6687]
[1748829686253,2.1183,2527.9,2527.8,0.6687]
[1748829687256,0.79084,2527.8,2527.7,7.0978]
[1748829687456,2.11834,2527.8,2527.7,7.0978]
[1748829688561,1.3275,2527.8,2527.7,7.0978]
[1748829688762,18.152,2528.0,2527.7,7.0978]
[1748829689061,19.4795,2528.0,2527.7,7.0978]
[1748829689366,0.79084,2527.8,2527.7,8.38867]
[1748829689564,0.79084,2527.8,2527.7,7.5978]
[1748829690962,0.79084,2527.8,2527.7,8.38867]
[1748829691867,0.79083,2527.9,2527.8,0.79083]
[1748829692366,0.79084,2527.8,2527.7,8.38864]
[1748829694067,0.79084,2527.8,2527.7,5.18084]
[1748829694969,0.79084,2527.8,2527.7,0.5]
[1748829695465,1.9419824,2527.8,2527.7,0.5]
[1748829695660,2.5819824,2527.8,2527.7,0.5]
[1748829697668,0.79096,2527.4,2527.3,0.00593613]
[1748829697867,18.94096,2527.4,2527.3,0.00593613]
[1748829698764,0.79109,2527.0,2526.9,3.89]
[1748829698967,0.79109,2527.0,2526.8,3.99894]
[1748829698968,0.79109,2527.0,2526.8,3.2078]
[1748829699164,0.79109,2527.0,2526.8,3.99894]
[1748829699364,0.79109,2527.0,2526.8,3.2078]
[1748829699569,0.79109,2527.0,2526.8,3.7078]
[1748829699966,0.79109,2527.0,2526.8,4.49895]
[1748829700168,0.79109,2527.0,2526.8,3.7078]
[1748829700373,0.79112,2526.9,2526.8,3.7078]
[1748829701277,0.79112,2526.9,2526.8,4.49895]
[1748829701975,0.79112,2526.9,2526.8,3.7078]
[1748829705271,18.94412,2526.9,2526.8,3.7078]
[1748829705574,18.94412,2526.9,2526.8,0.5]
[1748829708678,0.79124,2526.5,2526.4,0.9026]
[1748829709070,0.79127,2526.4,2526.3,0.6528]
[1748829709272,18.94427,2526.4,2526.3,0.6528]
[1748829710380,18.94427,2526.4,2526.3,2.72761]
[1748829710580,18.94427,2526.4,2526.3,1.9363]
[1748829711078,18.94427,2526.4,2526.3,2.4363]
[1748829712486,18.94427,2526.4,2526.3,1.1528]
[1748829716778,18.94427,2526.4,2526.3,1.94411]
[1748829716975,18.153,2526.4,2526.3,1.94411]
[1748829717184,18.94427,2526.4,2526.3,1.94411]
[1748829718581,1.3317,2526.6,2526.4,0.79126]
[1748829718785,0.7912,2526.7,2526.6,0.7912]
[1748829719087,0.79124,2526.5,2526.4,1.3799]
[1748829719286,0.79124,2526.5,2526.4,4.5877]
[1748829719788,0.79124,2526.5,2526.4,3.2078]
[1748829721286,0.79134,2526.2,2526.1,4.11653613]
[1748829721486,18.94634,2526.2,2526.1,0.90873613]
[1748829721697,18.94634,2526.2,2525.5,3.2078]
[1748829721698,1.97843,2526.1,2525.5,3.2078]
[1748829721887,0.79152,2525.6,2525.5,3.2078]
[1748829722088,18.155,2525.6,2525.5,3.2078]
[1748829722481,1.3626,2525.8,2525.5,3.2078]
[1748829722684,18.155,2525.7,2525.5,4.5151]
[1748829722987,18.9465,2525.7,2525.5,4.5151]
[1748829723192,0.79152,2525.6,2525.5,0.5]
[1748829723387,2.06282,2525.6,2525.5,0.5]
[1748829725388,1.2713,2525.6,2525.5,0.5]
[1748829725690,2.06282,2525.6,2525.5,0.5]
[1748829726294,1.2713,2525.6,2525.5,0.5]
[1748829726492,19.4283,2525.6,2525.5,1.98335]
[1748829726689,18.157,2525.7,2525.6,0.79152]
[1748829727291,0.1979,2525.7,2525.6,0.79152]
[1748829728090,0.1979,2525.7,2525.6,2.14762]
[1748829728690,0.98939,2525.7,2525.6,2.14762]
[1748829728881,0.98939,2525.7,2525.6,1.3561]
[1748829729490,0.1979,2525.7,2525.6,2.14762]
[1748829730193,0.98939,2525.7,2525.6,2.14762]
[1748829731191,0.1979,2525.7,2525.6,2.14762]
[1748829732898,0.98939,2525.7,2525.6,2.14762]
[1748829733997,0.1979,2525.7,2525.6,2.14762]
[1748829734398,0.1979,2525.7,2525.5,1.8423]
[1748829734899,0.1979,2525.7,2525.6,0.79152]
[1748829735099,0.1979,2525.7,2525.6,2.13242]
[1748829735595,0.1979,2525.7,2525.6,2.63242]
[1748829736097,0.98939,2525.7,2525.6,0.5]
[1748829737294,0.79155,2525.5,2525.4,0.00593613]
[1748829737495,0.79177,2524.8,2524.7,3.2078]
[1748829737793,0.79177,2524.8,2524.2,3.99974]
[1748829737794,0.79191,2524.4,2524.2,3.99974]
[1748829738102,1.2839,2524.7,2524.2,44.0078]
[1748829738404,0.79191,2524.4,2524.2,44.80369343]
[1748829738600,1.28983613,2524.7,2524.2,44.01175343]
[1748829738803,0.79193,2524.3,2524.2,3.21175343]
[1748829738996,1.28983613,2524.7,2524.2,3.21175343]
[1748829739303,0.7919,2524.4,2524.2,3.71175343]
[1748829739602,0.79189,2524.5,2524.2,4.50370343]
[1748829739998,0.79188,2524.5,2524.2,4.50369343]
[1748829740191,0.79188,2524.5,2524.2,5.86309343]
[1748829740501,0.79191,2524.4,2524.2,5.07115343]
[1748829740897,0.79193,2524.3,2524.2,1.86335343]
[1748829741201,0.7921,2523.8,2523.6,3.2078]
[1748829741392,1.295,2524.6,2523.6,3.2078]
[1748829741393,18.162,2524.1,2523.6,3.2078]
[1748829741598,3.2078,2524.5,2523.6,44.0078]
[1748829741798,3.2078,2524.5,2523.7,2.7348]
[1748829741799,0.792,2524.1,2523.7,2.7348]
[1748829741998,2.08002,2524.0,2523.7,2.73481]
[1748829742505,2.08004,2524.0,2523.7,2.73482]
[1748829742697,2.08004,2524.0,2523.7,1.9427]
[1748829743098,1.288,2524.0,2523.7,2.4427]
[1748829743297,2.08003,2524.0,2523.8,1.2868]
[1748829743509,1.288,2524.0,2523.8,2.07888]
[1748829744193,2.08003,2524.0,2523.8,1.2868]
[1748829744405,1.288,2524.0,2523.8,2.07887]
[1748829744604,1.288,2524.0,2523.7,1.948]
[1748829744800,1.288,2524.0,2523.8,0.79208]
[1748829745206,1.288,2524.0,2523.7,2.4512]
[1748829745207,1.288,2524.0,2523.7,0.5]
[1748829745402,19.453,2524.0,2523.7,0.5]
[1748829745906,0.79207,2523.9,2523.7,0.5]
[1748829746095,18.165,2524.0,2523.7,1.29212]
[1748829746302,18.165,2524.0,2523.8,2.08736]
[1748829746502,18.165,2524.0,2523.7,0.5]
[1748829746503,0.1981,2523.9,2523.7,0.5]
[1748829746699,0.1981,2523.9,2523.8,0.79209]
[1748829746903,0.1981,2523.9,2523.8,2.08739]
[1748829747103,0.1981,2523.9,2523.8,10.97739]
[1748829748601,0.1981,2523.9,2523.8,51.77739]
[1748829749301,3.2078,2524.6,2524.5,0.79187]
[1748829749703,0.00593613,2524.7,2524.5,3.99967]
[1748829749911,1.36583613,2524.7,2524.6,0.79184]
[1748829751107,2.15763613,2524.7,2524.6,0.79184]
[1748829751309,1.36583613,2524.7,2524.6,0.79184]
[1748829752106,0.00593613,2524.7,2524.6,0.79184]
[1748829752309,0.00593613,2524.7,2524.6,2.71454]
[1748829755307,0.00593613,2524.7,2524.6,1.44934]
[1748829756517,0.00593613,2524.7,2524.6,4.65714]
[1748829759617,0.79773613,2524.7,2524.6,3.99964]
[1748829759921,2.12453613,2524.7,2524.6,3.99964]
[1748829760219,1.97533613,2524.7,2524.6,3.99964]
[1748829760621,2.76713613,2524.7,2524.6,0.79184]
[1748829761019,2.76713613,2524.7,2524.3,3.2078]
[1748829761217,0.7919,2524.5,2524.4,0.79189]
[1748829761518,2.76715613,2524.7,2524.6,0.79184]
[1748829762323,0.79184,2524.6,2524.5,0.79184]
[1748829762518,0.79188,2524.5,2524.4,0.79188]
[1748829762726,0.1601,2524.5,2524.4,0.79188]
[1748829762926,0.95197,2524.5,2524.4,0.79188]
[1748829763120,2.28797,2524.5,2524.4,0.79188]
[1748829763320,1.4961,2524.5,2524.4,0.79188]
[1748829763721,1.336,2524.5,2524.4,0.79188]
[1748829764726,1.336,2524.5,2524.4,1.29188]
[1748829765426,0.64853613,2524.7,2524.6,0.59384]
[1748829765616,1.44033613,2524.7,2524.6,0.59384]
[1748829765820,2.79963613,2524.7,2524.6,0.59384]
[1748829766017,2.79967613,2524.7,2524.6,0.79184]
[1748829766421,0.79184,2524.6,2524.5,0.80097849]
[1748829766626,1.3593,2524.6,2524.5,0.80100849]
[1748829768031,2.15114,2524.6,2524.5,0.80100849]
[1748829768231,1.3593,2524.6,2524.5,0.80100849]
[1748829769425,2.15114,2524.6,2524.5,0.00913849]
[1748829769829,2.15114,2524.6,2524.5,0.80100849]
[1748829770031,1.3593,2524.6,2524.5,0.80100849]
[1748829771938,0.64853613,2524.7,2524.6,0.79184]
[1748829772131,0.00593613,2524.7,2524.6,0.79184]
[1748829772425,0.00593613,2524.7,2524.6,5.90104]
[1748829772631,0.00593613,2524.7,2524.6,9.79104]
[1748829773529,1.3164,2525.2,2525.1,0.79168]
[1748829773722,2.47238669,2525.2,2525.1,0.79168]
[1748829774928,3.26404669,2525.2,2525.0,0.7917]
[1748829775135,1.15598669,2525.1,2524.9,5.27936613]
[1748829775634,1.94768669,2525.1,2524.9,4.00546613]
[1748829775839,2.45708669,2525.0,2524.9,4.00546613]
[1748829776324,1.15598669,2525.0,2524.9,4.00546613]
[1748829776529,0.79168,2525.1,2525.0,0.79171]
[1748829776830,1.94904689,2525.2,2525.0,0.79171]
[1748829777034,1.15738689,2525.1,2525.0,0.79171]
[1748829777735,1.15752761,2525.1,2525.0,1.29171]
[1748829778238,1.94920761,2525.1,2525.0,1.29171]
[1748829779031,1.15752761,2525.1,2525.0,1.29171]
[1748829779830,1.15752761,2525.1,2525.0,2.55951]
[1748829780031,0.00593613,2525.4,2525.3,0.79162]
[1748829780238,1.16377659,2525.4,2525.3,0.79162]
[1748829780433,1.16377659,2525.4,2525.2,3.2078]
[1748829780434,0.79162,2525.3,2525.2,3.2078]
[1748829780639,3.24638578,2525.3,2525.2,3.2078]
[1748829781137,3.24644732,2525.3,2525.2,3.2078]
[1748829781438,0.79168,2525.1,2525.0,0.5]
[1748829781641,1.94960732,2525.1,2525.0,0.5]
[1748829782133,3.29630732,2525.1,2525.0,0.5]
[1748829783541,8.29630732,2525.1,2525.0,0.5]
[1748829785039,8.29610226,2525.1,2525.0,0.5]
[1748829786142,0.79171,2525.0,2524.9,0.00593613]
[1748829786345,0.79171,2525.0,2524.5,0.00913849]
[1748829786346,0.79184,2524.6,2524.5,0.00913849]
[1748829786542,0.7919,2524.4,2524.3,3.2078]
[1748829786844,5.7919,2524.4,2524.3,3.2078]
[1748829787035,6.9798,2524.4,2524.0,3.2078]
[1748829787235,0.79199,2524.1,2524.0,3.2078]
[1748829787845,1.94971226,2524.1,2524.0,3.2078]
[1748829788052,2.53452226,2524.1,2524.0,3.2078]
[1748829788241,2.53452226,2524.1,2524.0,3.99982]
[1748829788444,3.32651226,2524.1,2524.0,3.2078]
[1748829789247,3.32489908,2524.1,2524.0,3.2078]
[1748829789645,2.53290908,2524.1,2524.0,3.2078]
[1748829789849,1.15610908,2524.1,2524.0,3.99982]
[1748829790146,2.70768,2524.5,2524.3,0.79192]
[1748829790549,0.7919,2524.4,2524.3,0.5]
[1748829790747,2.0568,2524.4,2524.3,0.5]
[1748829790948,14.51849057,2524.4,2523.7,3.2078]
[1748829791138,0.79209,2523.8,2523.7,3.2078]
[1748829791545,1.94788057,2523.8,2523.7,3.2078]
[1748829791848,7.42069057,2523.8,2522.6,1.98114]
[1748829792149,3.2078,2523.5,2522.9,3.2078]
[1748829792343,1.15579057,2523.4,2523.0,1.9094]
[1748829792539,4.4727,2523.8,2523.1,4.5676]
[1748829792745,1.15359842,2523.7,2523.2,4.4833]
[1748829792945,4.4727,2523.8,2523.7,0.79212]
[1748829793145,3.2078,2523.8,2523.7,0.79212]
[1748829793847,0.00593613,2524.0,2523.5,3.2078]
[1748829794153,5.34327613,2524.0,2523.7,0.79212]
[1748829794448,4.55123613,2524.0,2523.3,5.1729]
[1748829794648,3.21373613,2524.0,2523.9,0.79206]
[1748829794848,0.00593613,2524.0,2523.9,0.79206]
[1748829796252,0.00593613,2524.0,2523.9,2.77486]
[1748829796759,3.89,2524.7,2523.9,2.77486]
[1748829796760,5.55658825,2525.3,2524.8,0.79176]
[1748829796957,3.12890368,2525.2,2524.8,0.79176]
[1748829797157,1.94489368,2525.1,2524.6,3.89]
[1748829797357,1.94489368,2525.1,2525.0,0.02774377]
[1748829797358,0.79169,2525.1,2525.0,0.02774377]
[1748829797656,1.15317817,2525.1,2525.0,0.02774377]
[1748829797960,0.79165,2525.2,2525.0,0.02774377]
[1748829798149,4.00537613,2525.3,2525.0,0.81945377]
[1748829798351,4.00537613,2525.3,2525.1,0.02774377]
[1748829798552,0.79757613,2525.3,2525.1,0.02774377]
[1748829798852,0.00593613,2525.3,2525.1,0.02774377]
[1748829799152,0.79755613,2525.3,2525.1,0.81942377]
[1748829799354,0.00593613,2525.3,2525.2,0.02774377]